fUST/lending_fUST_20251102
["ID","MTS","AMOUNT","RATE_DAILY","PERIOD"]
[392842507,1762035045104,-495.59033697,0.00036986,8]
[392842508,1762035045115,-501.23444859,0.00036986,8]
[392842509,1762035045126,-506.6208984,0.00036986,8]
[392842510,1762035045136,-502.6947019,0.00036986,8]
[392842511,1762035045146,-503.27099645,0.00036986,8]
[392842512,1762035045155,-520.47454384,0.00036986,8]
[392842513,1762035045166,-500.0,0.00036986,8]
[392842514,1762035045176,-501.22665998,0.00036986,8]
[392842515,1762035045187,-500.0,0.00036986,8]
[392842516,1762035045197,-500.0,0.00036986,8]
[392842517,1762035045206,-500.0,0.00036986,8]
[392842518,1762035045217,-500.0,0.00036986,8]
[392842519,1762035045227,-501.39569142,0.00036986,8]
[392842520,1762035045237,-198.6916265,0.00036986,8]
[392842521,1762035045246,-500.0,0.00036986,8]
[392842522,1762035045256,-500.0,0.00036986,8]
[392842523,1762035045265,-500.0,0.00036986,8]
[392842524,1762035045275,-500.0,0.00036986,8]
[392842525,1762035045284,-500.0,0.00036986,8]
[392842526,1762035045295,-500.0,0.00036986,8]
[392842527,1762035045305,-500.0,0.00036986,8]
[392842528,1762035045314,-584.19789188,0.00036986,8]
[392842529,1762035045323,-504.93294745,0.00036986,8]
[392842530,1762035045331,-500.0,0.00036986,8]
[392842531,1762035045341,-502.17075411,0.00036986,8]
[392842532,1762035045351,-503.00582004,0.00036986,8]
[392842533,1762035045362,-500.0,0.00036986,8]
[392842534,1762035045371,-500.0,0.00036986,8]
[392842535,1762035045380,-500.7901224,0.00036986,8]
[392842536,1762035045389,-500.0,0.00036986,8]
[392842537,1762035045399,-574.4,0.00036986,8]
[392842538,1762035045409,-501.57033728,0.00036986,8]
[392842539,1762035045418,-500.0,0.00036986,8]
[392842540,1762035045428,-500.0,0.00036986,8]
[392842541,1762035045437,-500.79768073,0.00036986,8]
[392842542,1762035045448,-404.0,0.00036986,8]
[392842543,1762035045459,-489.6101043,0.00036986,8]
[392842544,1762035045469,-500.0,0.00036986,8]
[392842545,1762035045478,-505.62482749,0.00036986,8]
[392842546,1762035045488,-500.0,0.00036986,8]
[392842547,1762035045497,-607.71210824,0.00036986,8]
[392842548,1762035045507,-502.48229652,0.00036986,8]
[392842549,1762035045515,-500.78294035,0.00036986,8]
[392842550,1762035045524,-502.11399582,0.00036986,8]
[392842551,1762035045533,-500.0,0.00036986,8]
[392842552,1762035045543,-500.0,0.00036986,8]
[392842553,1762035045552,-500.5462553,0.00036986,8]
[392842554,1762035045561,-500.0,0.00036986,8]
[392842555,1762035045570,-502.19136655,0.00036986,8]
[392842556,1762035045579,-501.98298326,0.00036986,8]
[392842557,1762035045589,-501.84821156,0.00036986,8]
[392842558,1762035045599,-500.0,0.00036986,8]
[392842559,1762035045612,-501.97285014,0.00036986,8]
[392842560,1762035045623,-500.0,0.00036986,8]
[392842561,1762035045632,-500.0,0.00036986,8]
[392842562,1762035045642,-325.83240215,0.00036986,8]
[392842563,1762035045654,-500.0,0.00036986,8]
[392842564,1762035045663,-500.0,0.00036986,8]
[392842565,1762035045673,-500.0,0.00036986,8]
[392842566,1762035045684,-500.0,0.00036986,8]
[392842567,1762035045693,-500.0,0.00036986,8]
[392842568,1762035045702,-500.0,0.00036986,8]
[392842569,1762035045711,-500.0,0.00036986,8]
[392842570,1762035045720,-500.0,0.00036986,8]
[392842571,1762035045729,-507.55482775,0.00036986,8]
[392842572,1762035045739,-500.0,0.00036986,8]
[392842573,1762035045748,-347.47946911,0.00036986,8]
[392842585,1762035046845,-476.53,0.0003698,10]
[392842586,1762035046855,-154.57780578,0.00036986,8]
[392842587,1762035046865,-500.0,0.00036986,2]
[392842588,1762035046874,-500.0,0.00036986,2]
[392842589,1762035046884,-510.23831605,0.00036986,8]
[392842590,1762035046893,-500.0,0.00036986,8]
[392842591,1762035046903,-502.2876687,0.00036986,8]
[392842592,1762035046912,-369.79,0.00036986,8]
[392842593,1762035046922,-977.73905606,0.00036986,3]
[392842594,1762035046935,-60.11094394,0.00036986,3]
[392842595,1762035046946,-1037.85,0.00036986,3]
[392842596,1762035046955,-1037.85,0.00036986,3]
[392842597,1762035046966,-1037.85,0.00036986,3]
[392842598,1762035046975,-1037.85,0.00036986,3]
[392842599,1762035046984,-1037.85,0.00036986,3]
[392842600,1762035046994,-1037.85,0.00036986,3]
[392842601,1762035047004,-1037.85,0.00036986,3]
[392842602,1762035047012,-1037.85,0.00036986,3]
[392842603,1762035047021,-1037.85,0.00036986,3]
[392842604,1762035047030,-500.0,0.00036986,8]
[392842605,1762035047039,-500.0,0.00036986,8]
[392842606,1762035047049,-500.0,0.00036986,8]
[392842607,1762035047060,-500.0,0.00036986,8]
[392842608,1762035047070,-500.0,0.00036986,8]
[392842609,1762035047079,-500.0,0.00036986,8]
[392842610,1762035047089,-500.0,0.00036986,8]
[392842611,1762035047099,-500.0,0.00036986,8]
[392842612,1762035047108,-185.69328619,0.00036986,8]
[392842613,1762035047117,-500.0,0.00036986,8]
[392842614,1762035047127,-500.0,0.00036986,8]
[392842615,1762035047137,-500.0,0.00036986,8]
[392842616,1762035047148,-500.0,0.00036986,8]
[392842617,1762035047159,-500.0,0.00036986,8]
[392842618,1762035047168,-500.0,0.00036986,8]
[392842619,1762035047178,-500.0,0.00036986,8]
[392842620,1762035047188,-500.0,0.00036986,8]
[392842621,1762035047199,-525.91842459,0.00036986,8]
[392842622,1762035047211,-87.50287366,0.00036986,8]
[392842623,1762035047220,-504.85319859,0.00036986,8]
[392842624,1762035047230,-337.19080854,0.00036986,8]
[392842625,1762035047241,-500.0,0.00036986,8]
[392842626,1762035047250,-500.0,0.00036986,8]
[392842627,1762035047260,-500.0,0.00036986,8]
[392842628,1762035047270,-647.43,0.00036986,8]
[392842629,1762035047278,-500.0,0.00036986,8]
[392842630,1762035047287,-329.6236465,0.00036986,8]
[392842635,1762035142777,566.47,0.00038032,60]
[392842641,1762035200784,150.0,1.04e-06,2]
[392842642,1762035201821,150.0,1.04e-06,2]
[392842643,1762035202853,150.0,1.04e-06,2]
[392842644,1762035203964,150.0,1.04e-06,2]
[392842645,1762035205004,150.0,1.04e-06,2]
[392842646,1762035206051,150.0,1.04e-06,2]
[392842732,1762035659964,150.0,0.00020325,2]
[392842733,1762035660363,150.0,0.00021293,2]
[392842741,1762036083446,421.56476089,0.00010618,2]
[392842742,1762036103551,6718.38743955,0.00017,2]
[392842745,1762036109869,2860.05779956,0.00025,2]
[392842746,1762036109891,2139.94220044,0.00025,2]
[392842747,1762036113421,7860.06779956,0.0002465,2]
[392842748,1762036113446,5501.78306008,0.0002465,2]
[392842749,1762036115428,4498.22693992,0.00024142,2]
[392842750,1762036115761,526.7736983,0.00018,5]
[392842751,1762036116649,-348.69801673,0.00024142,2]
[392842752,1762036117691,-5000.0,0.00023901,2]
[392842753,1762036117819,-397.11,0.00024132,10]
[392842754,1762036121232,-6475.28904373,0.00024142,2]
[392842755,1762036121337,-10000.01,0.00024142,2]
[392842756,1762036121579,-10000.01,0.00024142,2]
[392842757,1762036121639,-10000.01,0.00024142,2]
[392842758,1762036121739,-10000.01,0.00024142,2]
[392842759,1762036121858,-10000.01,0.00024142,2]
[392842760,1762036121943,-726.56210463,0.00024142,2]
[392842761,1762036121979,-10000.01,0.00024142,2]
[392842762,1762036123792,-10000.01,0.00024142,2]
[392842763,1762036123868,-10000.01,0.00024142,2]
[392842764,1762036123989,-10000.01,0.00024142,2]
[392842765,1762036124239,-494.60671324,0.00024142,2]
[392842766,1762036126489,-472.13667065,0.00024142,2]
[392842767,1762036126783,-10000.01,0.00024142,2]
[392842768,1762036126894,-10000.01,0.00024142,2]
[392842769,1762036127049,-10000.01,0.00024142,2]
[392842770,1762036127246,-10000.01,0.00024142,2]
[392842771,1762036127419,-10000.01,0.00024142,2]
[392842772,1762036127714,-10000.01,0.00024142,2]
[392842773,1762036127828,-10000.01,0.00024142,2]
[392842774,1762036128196,-290.88548872,0.00024132,10]
[392842775,1762036130900,-40.04451128,0.00024132,10]
[392842776,1762036130923,-509.69933983,0.00024142,2]
[392842777,1762036132492,-176.33384356,0.00024142,2]
[392842778,1762036135865,-5000.0,0.00023901,2]
[392842779,1762036135911,-0.01,0.00024142,2]
[392842780,1762036135971,-10000.01,0.00024142,2]
[392842781,1762036136087,-10000.01,0.00024142,2]
[392842782,1762036136204,-10000.01,0.00024142,2]
[392842783,1762036136287,-651.00694517,0.00024142,2]
[392842784,1762036136400,-10000.01,0.00024142,2]
[392842785,1762036138523,-299.96578412,0.00024021,12]
[392842786,1762036138935,-27.83171214,0.00024021,12]
[392842787,1762036138976,-9944.34657572,0.00024142,2]
[392842788,1762036140073,-395.69972237,0.00024142,2]
[392842789,1762036143031,-462.05601572,0.00023901,2]
[392842790,1762036145847,-162.88488126,0.00023901,2]
[392842791,1762036148639,390.54310535,0.00023901,2]
[392842792,1762036149865,-177.0,0.00023901,2]
[392842793,1762036152119,-540.94779082,0.00023901,2]
[392842794,1762036154316,-304.48714898,0.00023901,2]
[392842795,1762036156375,5000.0,0.00023901,2]
[392842796,1762036157044,-419.09191029,0.00023901,2]
[392842797,1762036159115,-173.38224351,0.00023901,2]
[392842798,1762036163262,-200.0,0.00023901,2]
[392842799,1762036164841,-161.62,0.00023901,2]
[392842800,1762036167075,-207.5258462,0.00023901,2]
[392842801,1762036169217,-226.22762231,0.00023901,2]
[392842802,1762036171370,-247.11059673,0.00023901,2]
[392842803,1762036172927,-200.0,0.00023901,2]
[392842804,1762036174463,-252.05550831,0.00023901,2]
[392842805,1762036176691,-373.11109552,0.00023901,2]
[392842806,1762036178208,-892.49934035,0.00023901,2]
[392842807,1762036178231,-474.0360917,0.00024142,2]
[392842808,1762036181037,-343.97084442,0.00023662,2]
[392842809,1762036184510,-245.5630041,0.00023662,2]
[392842810,1762036187490,-189.27853988,0.00023425,2]
[392842811,1762036189017,-600.35781143,0.00023425,2]
[392842812,1762036192453,-355.41389615,0.00023425,2]
[392842814,1762036208180,1200.0,0.00023424,2]
[392842815,1762036208325,-307.12326665,0.00023425,2]
[392842816,1762036210519,-375.82511611,0.00023425,2]
[392842817,1762036212309,-296.83803839,0.00023425,2]
[392842818,1762036214425,-274.70332372,0.00023425,2]
[392842819,1762036216034,-307.95946143,0.00023425,2]
[392842820,1762036219783,305.57180953,0.00023325,2]
[392842821,1762036220328,-304.70042667,0.00023425,2]
[392842822,1762036222607,-212.23166161,0.00023425,2]
[392842823,1762036229914,300.0,0.000234,2]
[392842824,1762036230588,-318.50007337,0.00023425,2]
[392842835,1762036231677,-305.57180953,0.00023425,2]
[392842839,1762036231792,-355.59869616,0.00023425,2]
[392842841,1762036233857,-293.80676222,0.00023425,2]
[392842842,1762036236662,-161.54767858,0.00023425,2]
[392842881,1762036237661,-340.5434381,0.00023425,2]
[392842883,1762036237670,-396.0,0.00023425,2]
[392842885,1762036237679,-500.0,0.000235,2]
[392842887,1762036237688,-4410.46615148,0.00023662,2]
[392842889,1762036237697,-359.15220649,0.00024107,2]
[392842891,1762036237706,-6831.49454765,0.00024108,2]
[392842932,1762036240216,-3e-08,0.00024108,2]
[392842933,1762036240272,-17720.10257512,0.00024108,2]
[392842934,1762036240282,-300.0,0.00024141,2]
[392842935,1762036240292,-300.0,0.00024141,2]
[392842936,1762036240302,-300.0,0.00024141,2]
[392842937,1762036240310,-47569.22619216,0.00024142,2]
[392842938,1762036240319,-288.79954784,0.00024171,2]
[392842939,1762036240328,-2095.74801899,0.00024172,2]
[392842940,1762036240337,-151.4091651,0.00024272,2]
[392842941,1762036240346,-500.0,0.00024596,2]
[392842942,1762036240355,-8153.40812191,0.00024596,2]
[392842943,1762036240364,-289.2,0.0002499,10]
[392842944,1762036240372,-241.0,0.0002499,10]
[392842945,1762036240382,-1367.1760916,0.00025,2]
[392842946,1762036240390,-500.0,0.00025,2]
[392842947,1762036240399,-13740.27747034,0.00025,2]
[392842948,1762036240408,-150.0,0.00025103,2]
[392842949,1762036240416,-900.0,0.00025469,3]
[392842950,1762036240425,-5000.0,0.00027021,13]
[392842951,1762036240434,-177.0,0.00027103,2]
[392842952,1762036240443,-403.98447456,0.00028,10]
[392842953,1762036240453,-5478.2017979,0.00028333,2]
[392842954,1762036240462,-196.867442,0.000285,7]
[392842955,1762036240471,-204.0,0.00029103,2]
[392842956,1762036240480,-1222.3520444,0.00029276,2]
[392842957,1762036240493,-31693.33941643,0.0002947,20]
[392842958,1762036240504,-160.0,0.000295,2]
[392842959,1762036240514,-260.0,0.00030048,2]
[392842960,1762036240522,-8535.65259089,0.00030398,2]
[392842961,1762036240531,-305.64946153,0.00030498,2]
[392842962,1762036240543,-360.0,0.00030596,2]
[392842963,1762036240552,-231.0,0.00031103,2]
[392842964,1762036240561,-460.0,0.00031144,2]
[392842965,1762036240572,-428.39240681,0.00031391,30]
[392842966,1762036240581,-150.0,0.00031391,30]
[392842967,1762036240591,-560.0,0.00031692,2]
[392842968,1762036240600,-340.0,0.0003224,2]
[392842969,1762036240609,-174.8057976,0.0003278,60]
[392842970,1762036240619,-2095.74801899,0.00032805,2]
[392842971,1762036240628,-196.867442,0.00033085,7]
[392842972,1762036240637,-258.0,0.00033103,120]
[392842973,1762036240647,-211.48302928,0.000332,117]
[392842974,1762036240659,-207.0,0.00033874,120]
[392842975,1762036240669,-186.29005933,0.00034547,4]
[392842976,1762036240679,-285.0,0.00035103,120]
[392842977,1762036240689,-207.0,0.00035568,120]
[392842978,1762036240697,-1283.07765332,0.00036795,2]
[392842979,1762036240706,-269.6213378,0.0003683,2]
[392842980,1762036240715,-8535.65259087,0.00036871,2]
[392842981,1762036240732,-408.14658804,0.00036885,2]
[392842982,1762036240745,-151.0,0.00036942,2]
[392842983,1762036240755,-151.0,0.00036942,2]
[392842984,1762036240764,-151.0,0.00036942,2]
[392842985,1762036240774,-151.0,0.00036942,2]
[392842986,1762036240783,-151.0,0.00036942,2]
[392842987,1762036240794,-151.0,0.00036942,2]
[392842988,1762036240803,-151.0,0.00036942,2]
[392842989,1762036240813,-151.0,0.00036942,2]
[392842990,1762036240822,-151.0,0.00036942,2]
[392842991,1762036240831,-151.0,0.00036942,2]
[392842992,1762036240840,-151.0,0.00036942,2]
[392842993,1762036240849,-151.0,0.00036942,2]
[392842994,1762036240858,-151.0,0.00036942,2]
[392842995,1762036240868,-151.0,0.00036942,2]
[392842996,1762036240879,-151.0,0.00036942,2]
[392842997,1762036240890,-151.0,0.00036942,2]
[392842998,1762036240905,-151.0,0.00036942,2]
[392842999,1762036240915,-151.0,0.00036942,2]
[392843000,1762036240924,-151.0,0.00036942,2]
[392843001,1762036241020,-151.0,0.00036942,2]
[392843002,1762036241031,-1219.118,0.00036969,2]
[392843003,1762036241041,-366.33,0.00036976,10]
[392843004,1762036241050,-347.04,0.00036976,10]
[392843005,1762036241059,-199.0,0.00036985,7]
[392843006,1762036241068,-500.0,0.00036986,8]
[392843007,1762036241077,-500.0,0.00036986,8]
[392843008,1762036241087,-630.06,0.00036986,8]
[392843009,1762036241095,-502.15093773,0.00036986,8]
[392843010,1762036241105,-502.55859397,0.00036986,8]
[392843011,1762036241114,-503.13629593,0.00036986,8]
[392843012,1762036241123,-500.0,0.00036986,8]
[392843013,1762036241132,-170.3763535,0.00036986,8]
[392843014,1762036241141,-500.0,0.00036986,8]
[392843015,1762036241150,-500.0,0.00036986,8]
[392843016,1762036241159,-1000.0,0.00036986,2]
[392843017,1762036241168,-542.33,0.00036986,8]
[392843018,1762036241178,-500.0,0.00036986,8]
[392843019,1762036241187,-500.0,0.00036986,8]
[392843020,1762036241197,-500.0,0.00036986,8]
[392843021,1762036241206,-440.90981948,0.00036986,8]
[392843022,1762036241215,-510.37,0.00036986,8]
[392843023,1762036241224,-500.0,0.00036986,8]
[392843024,1762036241234,-500.0,0.00036986,8]
[392843025,1762036241243,-500.0,0.00036986,8]
[392843026,1762036241252,-605.41,0.00036986,3]
[392843027,1762036241261,-605.41,0.00036986,3]
[392843028,1762036241270,-500.0,0.00036986,8]
[392843029,1762036241280,-500.0,0.00036986,8]
[392843030,1762036241289,-500.0,0.00036986,8]
[392843031,1762036241298,-500.0,0.00036986,8]
[392843032,1762036241307,-544.13,0.00036986,8]
[392843033,1762036241316,-582.04,0.00036986,8]
[392843034,1762036241326,-500.0,0.00036986,8]
[392843035,1762036241335,-507.44,0.00036986,8]
[392843036,1762036241343,-500.0,0.00036986,8]
[392843037,1762036241352,-601.9,0.00036986,8]
[392843038,1762036241361,-500.0,0.00036986,8]
[392843039,1762036241370,-500.0,0.00036986,8]
[392843040,1762036241379,-500.0,0.00036986,8]
[392843041,1762036241388,-500.0,0.00036986,8]
[392843042,1762036241397,-500.0,0.00036986,8]
[392843043,1762036241406,-203.40425626,0.00036986,8]
[392843044,1762036241453,300.0,0.000234,2]
[392843052,1762036242725,-784.8788731,0.00023867,2]
[392843053,1762036242786,-2050.61775709,0.00023867,2]
[392843054,1762036242902,-892.70377426,0.00023867,2]
[392843058,1762036248823,-167.90496846,0.00023867,2]
[392843059,1762036250348,5000.0,0.00023425,2]
[392843060,1762036251315,300.0,0.000234,2]
[392843061,1762036252370,-196.37,0.00023867,2]
[392843062,1762036268393,-276.52831282,0.00023867,2]
[392843063,1762036270640,-152.08678166,0.00023867,2]
[392843064,1762036272439,-163.57254089,0.00023867,2]
[392843065,1762036273128,2393.52174433,0.00023867,2]
[392843066,1762036275172,-240.05745911,0.00023867,2]
[392843067,1762036358339,-75.27953261,0.00023867,2]
[392843068,1762036358375,-254.87088445,0.000239,2]
[392843069,1762036362479,-45.12911555,0.000239,2]
[392843070,1762036362500,-140.14984469,0.000239,2]
[392843071,1762036372851,5000.0,0.000239,2]
[392843072,1762036381331,-159.85015531,0.000239,2]
[392843073,1762036381351,-22.9713308,0.000239,2]
[392843074,1762036385295,-175.46816982,0.000239,2]
[392843075,1762036393241,242.0,0.00032877,120]
[392843076,1762036395095,5000.0,0.000239,2]
[392843077,1762036395806,-101.56049938,0.000239,2]
[392843078,1762036395827,-198.43950062,0.000239,2]
[392843079,1762036398425,0.01,0.000238,2]
[392843080,1762036398446,2434.78519073,0.000238,2]
[392843081,1762036402840,2565.21480927,0.000239,2]
[392843082,1762036403341,-101.56049938,0.000239,2]
[392843083,1762036403364,-67.3913223,0.000239,2]
[392843084,1762036427760,150.0,0.00022557,2]
[392843085,1762036428580,-150.0,0.00023631,2]
[392843086,1762036428601,-149.99999997,0.00023661,2]
[392843087,1762036430371,-300.0,0.00023661,2]
[392843088,1762036432518,-235.2532903,0.00023661,2]
[392843089,1762036448296,-162.49636516,0.00023661,2]
[392843090,1762036450457,-1206.81929964,0.00023661,2]
[392843091,1762036452580,-303.07148793,0.00023661,2]
[392843092,1762036458430,-77.14474773,0.00023661,2]
[392843093,1762036458565,-150.0,0.00023781,2]
[392843094,1762036458587,-300.0,0.000239,2]
[392843095,1762036458612,-3.8552523,0.000239,2]
[392843096,1762036460876,-154.22493,0.000239,2]
[392843097,1762036468574,154.22493,0.00023661,2]
[392843098,1762036492159,150.0,0.00021045,2]
[392843099,1762036492528,150.0,0.00022047,2]
[392843100,1762036519620,212.24166161,0.000236,4]
[392843101,1762036520272,-300.0,0.000237,2]
[392843102,1762036520293,-300.0,0.000237,2]
[392843103,1762036520313,-300.0,0.000237,2]
[392843104,1762036520333,-226.38396877,0.000237,2]
[392843105,1762036538275,-300.0,0.000237,2]
[392843106,1762036538299,-160.08166367,0.000237,2]
[392843108,1762036608138,369.539496,0.00013699,2]
[392843109,1762036608368,369.539496,0.00020187,2]
[392843110,1762036611282,5000.0,0.000237,2]
[392843111,1762036669741,10183.0,0.0003802,60]
[392843112,1762036684511,150.0,0.00022751,2]
[392843114,1762036748718,150.0,0.00022704,2]
[392843116,1762036814647,150.0,0.00022399,2]
[392843117,1762036838372,-279.90341399,0.00023231,2]
[392843118,1762036844722,-508.90833633,0.00023231,2]
[392843121,1762036879346,150.0,0.00020637,2]
[392843122,1762036961730,395.0,0.0003802,60]
[392843128,1762037199111,-150.0,0.00023641,2]
[392843129,1762037199132,-64.45485386,0.000237,2]
[392843130,1762037200695,-235.54514614,0.000237,2]
[392843131,1762037200718,-300.0,0.000237,2]
[392843132,1762037200739,-95.05850681,0.000237,2]
[392843133,1762037205647,-169.44009325,0.000237,2]
[392843134,1762037208590,5000.0,0.00023641,2]
[392843135,1762037216525,1014.49569812,0.000237,2]
[392843136,1762037224939,5000.0,0.000237,2]
[392843137,1762037232856,3985.51430188,0.000237,2]
[392843138,1762037232879,1014.48569812,0.000237,2]
[392843139,1762037241345,5000.0,0.000237,2]
[392843140,1762037249002,1600.69012418,0.000237,2]
[392843141,1762037257095,2384.8341777,0.000237,2]
[392843142,1762037257119,2615.1658223,0.000237,2]
[392843143,1762037264927,5000.0,0.000237,2]
[392843144,1762037272828,1141.80034382,0.000237,2]
[392843145,1762037280689,1243.04383388,0.000237,2]
[392843146,1762037280711,3756.95616612,0.000237,2]
[392843147,1762037288645,5000.0,0.000237,2]
[392843148,1762037303322,-230.82507551,0.00023463,2]
[392843149,1762037313048,5000.0,0.00023,2]
[392843150,1762037314465,-569.67903736,0.00023228,2]
[392843151,1762037317034,-315.8224616,0.00023228,2]
[392843152,1762037322936,-408.53034593,0.00023228,2]
[392843153,1762037324645,-348.81486615,0.00023228,2]
[392843154,1762037334733,4803.09306131,0.00023,2]
[392843155,1762037377617,1031.02127922,0.00023,2]
[392843156,1762037400765,150.0,0.00020672,2]
[392843157,1762037401171,150.0,0.00021657,2]
[392843158,1762037401555,150.0,0.00022641,2]
[392843194,1762037432091,-3357.15328896,0.00023228,2]
[392843196,1762037432103,-150.0,0.00023345,2]
[392843198,1762037432112,-177.70527042,0.00023463,2]
[392843201,1762037432122,-150.0,0.00023625,2]
[392843202,1762037432131,-35.50139994,0.000237,2]
[392843204,1762037432143,-150.0,0.0002461,2]
[392843207,1762037432153,-854.8590252,0.00025304,2]
[392843208,1762037432163,-177.0,0.00025346,2]
[392843210,1762037432172,-168.15,0.00025594,2]
[392843212,1762037432181,-196.18,0.00026579,2]
[392843214,1762037432191,-369.539496,0.00026676,2]
[392843216,1762037432200,-204.0,0.00027346,2]
[392843218,1762037432209,-224.2,0.00027563,2]
[392843220,1762037432218,-194.926045,0.000285,7]
[392843222,1762037432227,-252.23,0.00028547,2]
[392843224,1762037432236,-854.8590252,0.0002919,2]
[392843227,1762037432246,-231.0,0.00029346,2]
[392843230,1762037432255,-280.26,0.00029532,2]
[392843233,1762037432265,-367.0,0.00030046,2]
[392843236,1762037432274,-1000.0,0.00030048,14]
[392843239,1762037432283,-1001.40013897,0.00030048,14]
[392843242,1762037432292,-341.2266194,0.00030892,2]
[392843244,1762037432301,-258.0,0.00031345,2]
[392843249,1762037432321,-299.2230987,0.00031474,2]
[392843250,1762037432331,-194.926045,0.0003301,7]
[392843252,1762037432341,-263.0356126,0.0003301,25]
[392843254,1762037432351,-854.8590252,0.00033076,2]
[392843255,1762037432361,-369.539496,0.00033165,2]
[392843256,1762037432370,-636.64352685,0.0003334,2]
[392843257,1762037432379,-581.80169595,0.0003334,2]
[392843317,1762037440435,-3e-08,0.00024953,2]
[392843416,1762037442980,-1621.50481803,0.00024953,2]
[392843417,1762037442991,-3378.49518194,0.00024953,2]
[392843418,1762037443000,-564.15665238,0.0003334,2]
[392843419,1762037443010,-2037.25928592,0.0003334,2]
[392843420,1762037443019,-618.32987024,0.0003334,2]
[392843421,1762037443028,-1112.99376642,0.0003334,2]
[392843422,1762037443037,-1978.65558475,0.0003334,2]
[392843423,1762037443046,-285.0,0.00033345,120]
[392843424,1762037443055,-1060.58350709,0.0003338,2]
[392843425,1762037443066,-1030.0748137,0.0003338,2]
[392843426,1762037443074,-403.98447456,0.00034077,2]
[392843427,1762037443084,-800.0,0.00034967,2]
[392843428,1762037443093,-800.0,0.00035017,2]
[392843429,1762037443103,-800.0,0.00035052,2]
[392843430,1762037443112,-800.0,0.00035056,2]
[392843431,1762037443121,-151.0,0.00035074,2]
[392843432,1762037443131,-151.0,0.00035074,2]
[392843433,1762037443140,-151.0,0.00035074,2]
[392843434,1762037443149,-151.0,0.00035074,2]
[392843435,1762037443160,-151.0,0.00035074,2]
[392843436,1762037443169,-151.0,0.00035074,2]
[392843437,1762037443179,-151.0,0.00035074,2]
[392843438,1762037443187,-151.0,0.00035074,2]
[392843439,1762037443196,-151.0,0.00035074,2]
[392843440,1762037443205,-151.0,0.00035074,2]
[392843441,1762037443215,-151.0,0.00035074,2]
[392843442,1762037443224,-151.0,0.00035074,2]
[392843443,1762037443233,-151.0,0.00035074,2]
[392843444,1762037443242,-151.0,0.00035074,2]
[392843445,1762037443251,-151.0,0.00035074,2]
[392843446,1762037443260,-151.0,0.00035074,2]
[392843447,1762037443269,-151.0,0.00035074,2]
[392843448,1762037443279,-151.0,0.00035074,2]
[392843449,1762037443288,-151.0,0.00035074,2]
[392843450,1762037443297,-151.0,0.00035074,2]
[392843451,1762037443306,-312.0,0.00035346,120]
[392843452,1762037443315,-263.90563189,0.00036242,4]
[392843453,1762037443324,-854.8590252,0.00036962,2]
[392843454,1762037443334,-386.29,0.00036976,10]
[392843455,1762037443344,-1068.14097201,0.00036985,5]
[392843456,1762037443352,-362.98566654,0.00036985,15]
[392843457,1762037443362,-199.0,0.00036985,7]
[392843458,1762037443375,-500.0,0.00036986,8]
[392843459,1762037443384,-500.0,0.00036986,8]
[392843460,1762037443393,-516.64,0.00036986,8]
[392843461,1762037443404,-500.0,0.00036986,8]
[392843462,1762037443413,-500.0,0.00036986,8]
[392843463,1762037443422,-500.98748372,0.00036986,8]
[392843464,1762037443431,-500.0,0.00036986,8]